bitfinex-derivatives/quotes_ETHF0:USTF0_20250604
["timestamp","ask_amount","ask_price","bid_price","bid_amount"]
[1749078374482,0.76717,2605.5,2605.4,4.51]
[1749078376982,0.76717,2605.5,2605.4,5.2772]
[1749078377887,1.40947,2605.6,2605.5,0.76717]
[1749078378086,2.37433924,2605.6,2605.5,0.76717]
[1749078379590,0.76717,2605.5,2605.4,5.27718]
[1749078379887,1.73203924,2605.5,2605.4,5.27718]
[1749078380380,1.73203924,2605.5,2605.4,4.51]
[1749078380981,2.94943924,2605.5,2605.4,4.51]
[1749078381384,2.94943924,2605.5,2605.4,5.2772]
[1749078381585,1.73203924,2605.5,2605.4,5.2772]
[1749078382190,1.73342899,2605.5,2605.4,5.2772]
[1749078382484,1.73342899,2605.5,2605.4,4.51]
[1749078383482,2.98312899,2605.5,2605.4,4.51]
[1749078383982,6.19092899,2605.5,2605.4,4.51]
[1749078384181,0.76723,2605.3,2605.2,0.00575153]
[1749078384383,1.73348899,2605.3,2605.2,0.00575153]
[1749078384786,1.73348899,2605.3,2604.8,0.3837]
[1749078384787,0.76735,2604.9,2604.8,0.3837]
[1749078385084,0.76735,2604.9,2604.8,4.8937]
[1749078385290,2.5293,2605.2,2604.8,8.1015]
[1749078385593,0.6644,2605.2,2605.1,0.76729]
[1749078385783,1.63042077,2605.2,2605.1,0.76729]
[1749078386086,2.39768077,2605.2,2605.1,3.97509]
[1749078386677,0.6644,2605.2,2605.1,3.97509]
[1749078386884,1.63037201,2605.2,2605.1,3.97509]
[1749078387187,0.6056,2605.5,2605.1,3.97509]
[1749078387188,0.76722,2605.4,2605.3,0.76723]
[1749078387488,0.76722,2605.4,2605.3,5.27723]
[1749078387489,2.39759081,2605.4,2605.3,5.27723]
[1749078388390,2.39759081,2605.4,2605.3,4.51]
[1749078388691,0.96597081,2605.4,2605.3,5.27723]
[1749078388889,0.76718,2605.5,2605.4,0.7672]
[1749078389084,1.73305251,2605.5,2605.4,0.7672]
[1749078389291,1.73306122,2605.5,2605.4,0.7672]
[1749078389686,1.733011,2605.5,2605.4,0.7672]
[1749078390887,0.965841,2605.5,2605.4,0.7672]
[1749078391890,0.6492,2605.6,2605.5,0.76717]
[1749078392086,0.96581392,2605.6,2605.5,0.76717]
[1749078392287,0.96581392,2605.6,2605.5,3.97497]
[1749078392485,0.96581392,2605.6,2605.5,5.30687]
[1749078393090,0.665,2606.0,2605.9,0.76705]
[1749078393091,0.6187,2606.0,2605.9,0.76705]
[1749078393291,1.58462541,2606.0,2605.9,5.27705]
[1749078393795,0.76697,2606.2,2606.1,0.767]
[1749078394289,1.73285013,2606.2,2606.1,0.767]
[1749078396194,1.73285013,2606.2,2606.1,3.9748]
[1749078396898,0.64995153,2606.4,2606.3,0.76694]
[1749078396899,0.00575153,2606.4,2606.3,0.76694]
[1749078397093,0.97162514,2606.4,2606.3,5.29194]
[1749078397292,0.00575153,2606.4,2606.3,6.59984]
[1749078398586,0.77266153,2606.4,2606.3,6.59984]
[1749078398990,3.2078,2607.2,2606.3,10.8329]
[1749078399296,3.03725726,2608.2,2607.2,0.76667]
[1749078399297,1.38736,2607.3,2607.2,0.76667]
[1749078399496,2.35435482,2607.3,2607.2,5.29067]
[1749078399892,1.38736,2607.3,2607.2,5.29067]
[1749078400301,2.35353101,2607.3,2607.2,5.29067]
[1749078400497,1.38736,2607.3,2607.2,5.29067]
[1749078403302,1.38736,2607.3,2607.2,4.524]
[1749078403607,1.38736,2607.3,2607.2,5.29067]
[1749078403990,1.38736,2607.3,2607.2,4.524]
[1749078404696,2.64716,2607.3,2607.2,4.524]
[1749078406803,2.64716,2607.3,2607.2,5.29067]
[1749078407504,2.64716,2607.3,2607.2,4.524]
[1749078408402,2.64716,2607.3,2607.2,5.29067]
[1749078409604,2.64716,2607.3,2607.2,4.524]
[1749078409909,1.38736,2607.3,2607.2,5.29067]
[1749078410606,1.38734,2607.3,2607.2,5.29067]
[1749078410811,0.6207,2607.3,2607.2,5.29067]
[1749078411699,1.38734,2607.3,2607.2,5.29067]
[1749078411901,0.6207,2607.3,2607.2,5.29067]
[1749078412100,1.38734,2607.3,2607.2,5.29067]
[1749078418110,0.6207,2607.3,2607.2,5.29067]
[1749078419413,1.38734,2607.3,2607.2,5.29067]
[1749078421116,0.7667,2607.1,2607.0,5.47348153]
[1749078421317,2.53734,2607.3,2607.0,5.47348153]
[1749078421318,0.76669,2607.2,2607.1,0.76667]
[1749078421615,0.76669,2607.2,2607.0,9.22875153]
[1749078421616,1.38734,2607.3,2607.2,0.76667]
[1749078422012,0.6207,2607.3,2607.2,0.76667]
[1749078422315,0.00575153,2607.5,2607.1,1.91676]
[1749078422510,0.00575153,2607.5,2607.4,0.76661]
[1749078422712,0.99046015,2607.5,2607.4,5.28861]
[1749078424014,0.99046015,2607.5,2607.4,8.49641]
[1749078424324,0.99046015,2607.5,2607.4,5.28861]
[1749078424622,0.9917907,2607.5,2607.1,3.2078]
[1749078424927,0.76667,2607.2,2607.1,3.2078]
[1749078425223,0.76667,2607.2,2607.1,7.7298]
[1749078425411,1.75270453,2607.2,2607.1,7.7298]
[1749078425721,2.36740453,2607.2,2607.1,4.522]
[1749078426111,2.36740453,2607.2,2607.1,5.2887]
[1749078427315,1.60073453,2607.2,2607.1,5.2887]
[1749078427614,1.60073453,2607.2,2607.1,8.4965]
[1749078427816,0.98603453,2607.2,2607.1,9.7471]
[1749078428512,0.98603453,2607.2,2607.1,8.4965]
[1749078430621,0.98603453,2607.2,2607.1,9.7898]
[1749078433325,0.77233153,2607.5,2607.4,0.76661]
[1749078433626,0.99421092,2607.5,2607.4,0.76661]
[1749078433812,1.76079092,2607.5,2607.4,0.76661]
[1749078434019,0.99421092,2607.5,2607.4,0.76661]
[1749078434329,0.99421092,2607.5,2607.4,3.97441]
[1749078435023,0.99421092,2607.5,2607.4,4.61681]
[1749078435727,1.76079092,2607.5,2607.4,3.2078]
[1749078435917,1.61251092,2607.5,2607.1,20.7928]
[1749078436117,1.61251092,2607.5,2607.2,5.29567]
[1749078436118,0.76664,2607.3,2607.2,5.29567]
[1749078436324,1.75509939,2607.3,2607.2,5.29567]
[1749078436724,0.98845939,2607.3,2607.2,5.29567]
[1749078437431,1.75509939,2607.3,2607.2,4.529]
[1749078437630,1.99714,2607.3,2607.2,5.29567]
[1749078437828,2.9854156,2607.3,2607.2,5.29567]
[1749078438233,2.9854156,2607.3,2607.2,4.529]
[1749078438531,0.76669,2607.2,2607.0,0.00575153]
[1749078438729,0.76669,2607.2,2607.1,4.529]
[1749078438935,1.75488049,2607.2,2607.1,5.29568]
[1749078439328,0.98819049,2607.2,2607.1,5.29568]
[1749078439931,1.75486049,2607.2,2607.1,5.29568]
[1749078440129,0.98819049,2607.2,2607.1,5.29568]
[1749078441427,0.98819049,2607.2,2607.1,8.50348]
[1749078442027,0.76665,2607.3,2607.2,0.76667]
[1749078442228,1.75503382,2607.3,2607.2,0.76667]
[1749078442426,15.1961563,2613.9,2607.2,2.64207]
[1749078442427,1.9472,2609.2,2607.2,2.64207]
[1749078442629,15.1961563,2613.9,2609.8,3.2078]
[1749078442630,3.81623688,2610.9,2609.8,3.2078]
[1749078442829,3.81623688,2610.9,2608.9,8.95954725]
[1749078442830,5.34094178,2611.6,2611.5,0.76541]
[1749078443029,2.8238,2612.5,2611.5,4.30728072]
[1749078443235,8.51817,2613.4,2612.2,3.2078]
[1749078443236,0.29898607,2612.7,2612.2,3.2078]
[1749078443432,0.76509,2612.6,2612.3,0.53743885]
[1749078443639,3.35649883,2612.7,2612.5,3.2078]
[1749078443836,3.35649883,2612.7,2612.6,1.8441298]
[1749078444036,12.15649883,2612.7,2612.6,2.6092198]
[1749078444335,8.80575153,2612.7,2612.6,2.6092198]
[1749078444733,8.80575153,2612.7,2612.6,3.16970499]
[1749078444929,8.80575153,2612.7,2612.6,3.74567488]
[1749078445134,3.2078,2614.2,2612.6,2.98058488]
[1749078445432,3.97258,2613.7,2612.8,3.2078]
[1749078445633,3.97258,2613.7,2612.6,0.53753123]
[1749078445634,8.8,2613.4,2613.1,3.2078]
[1749078445847,8.8,2613.4,2612.8,3.2078]
[1749078446048,11.85176123,2613.4,2612.8,3.2078]
[1749078446245,11.85750099,2613.4,2613.1,3.2078]
[1749078447650,1.3194,2613.3,2613.1,3.2078]
[1749078448041,4.37116123,2613.3,2613.1,3.97274]
[1749078448654,4.37116123,2613.3,2613.1,3.2078]
[1749078448845,3.2078,2613.2,2612.6,0.53753123]
[1749078449046,3.2078,2612.8,2612.6,0.53753123]
[1749078449247,1.3269,2612.7,2612.6,4.51042123]
[1749078449755,1.3269,2612.7,2612.6,3.74533123]
[1749078449948,1.3269,2612.7,2612.6,4.51042123]
[1749078452362,10.1269,2612.7,2612.6,4.51042123]
[1749078452749,10.1269,2612.7,2612.6,1.30262123]
[1749078453856,10.1269,2612.7,2612.6,4.51042123]
[1749078455053,10.19421476,2612.7,2612.6,4.51042123]
[1749078457254,0.06731476,2612.7,2612.6,4.51042123]
[1749078457453,4.76e-06,2612.7,2612.6,4.51042123]
[1749078458256,7.90000476,2612.7,2612.6,4.51042123]
[1749078458656,12.90000476,2612.7,2612.6,0.53753123]
[1749078458864,12.90000476,2612.7,2612.6,1.30262123]
[1749078459861,12.90000476,2612.7,2612.6,4.51042123]
[1749078460160,7.9,2612.7,2612.6,4.51042123]
[1749078461159,7.96731476,2612.7,2612.6,5.06754973]
[1749078461356,7.96731476,2612.7,2612.6,5.06753154]
[1749078461551,7.96731476,2612.7,2612.6,4.51042123]
[1749078461756,7.96731476,2612.7,2612.6,5.06753259]
[1749078461964,7.96731476,2612.7,2612.6,4.51042123]
[1749078462358,7.96731476,2612.7,2612.6,6.99803474]
[1749078462663,0.06731476,2612.7,2612.6,6.99803233]
[1749078462966,0.06731476,2612.7,2612.6,6.44094855]
[1749078463960,0.06731476,2612.7,2612.6,6.99769121]
[1749078464160,0.06731476,2612.7,2612.6,6.44094855]
[1749078464365,0.06731476,2612.7,2612.6,6.99770288]
[1749078464560,0.06731476,2612.7,2612.6,6.44094855]
[1749078464864,0.06731476,2612.7,2612.6,5.06750856]
[1749078466055,0.06731476,2612.7,2612.6,5.41515258]
[1749078466262,0.06731476,2612.7,2612.6,5.62434317]
[1749078466456,0.06731476,2612.7,2612.6,6.7939816]
[1749078466654,0.06731476,2612.7,2612.6,6.44681157]
[1749078467260,0.06731476,2612.7,2612.6,5.62432711]
[1749078467465,0.06731476,2612.7,2612.6,6.44864089]
[1749078468368,0.06731476,2612.7,2612.6,6.79576237]
[1749078468567,0.06731476,2612.7,2612.6,6.44864089]
[1749078469366,0.06731476,2612.7,2612.6,6.99191572]
[1749078469564,0.06731476,2612.7,2612.6,6.44864089]
[1749078470464,0.06731476,2612.7,2612.6,8.72186961]
[1749078471371,1.2987,2612.8,2612.7,0.76506]
[1749078471567,1.2987,2612.8,2612.7,2.68892563]
[1749078471767,1.2987,2612.8,2612.7,2.68627284]
[1749078472070,1.2987,2612.8,2612.7,2.14353954]
[1749078472374,0.76497,2613.0,2612.7,1.37847954]
[1749078472671,0.76497,2613.1,2613.0,0.76493]
[1749078472872,3.97277,2613.1,2613.0,1.37847954]
[1749078473070,8.97277,2613.1,2613.0,1.37847954]
[1749078473269,8.97277,2613.1,2613.0,2.14340954]
[1749078473465,15.67277,2613.1,2613.0,2.14340954]
[1749078473772,8.97277,2613.1,2612.9,3.047689]
[1749078473959,3.97277,2613.1,2613.0,0.76493]
[1749078474372,13.67277,2613.1,2613.0,0.76493]
[1749078475774,0.765,2612.9,2612.8,3.047689]
[1749078475969,0.76506,2612.7,2612.6,1.09461856]
[1749078476174,0.76515,2612.4,2612.3,3.812849]
[1749078476367,0.76518,2612.3,2612.2,0.77093153]
[1749078476567,5.9428,2612.3,2612.2,0.77093153]
[1749078477572,4.7,2612.3,2612.2,0.77093153]
[1749078478269,3.3631,2613.2,2612.2,3.83170153]
[1749078478466,1.36818,2613.0,2612.9,3.04999896]
[1749078478662,6.36818,2613.0,2612.9,3.04999896]
[1749078479176,10.16818,2613.0,2612.9,3.04999896]
[1749078479678,10.16818,2613.0,2612.9,2.28499896]
[1749078479870,0.76503,2612.8,2612.7,2.28499896]
[1749078480070,11.31565,2613.0,2612.7,2.28499896]
[1749078480071,0.76502,2612.9,2612.8,0.76501]
[1749078480371,5.16821,2613.0,2612.9,0.765]
[1749078480577,0.76502,2612.9,2612.8,3.05000896]
[1749078481675,0.76502,2612.9,2612.8,3.05002896]
[1749078482275,5.1682,2613.0,2612.9,0.765]
[1749078482664,10.1682,2613.0,2612.9,0.765]
[1749078483373,5.1682,2613.0,2612.9,0.765]
[1749078485278,0.76503,2612.8,2612.7,2.28499896]
[1749078485476,0.76506,2612.7,2612.6,3.05006896]
[1749078485676,0.76505,2612.8,2612.7,0.76503]
[1749078485877,0.76505,2612.8,2612.7,2.00089708]
[1749078486177,3.97282,2612.9,2612.8,0.76503]
[1749078486378,3.97282,2612.9,2612.8,2.00089708]
[1749078490286,3.98847359,2612.9,2612.8,2.00089708]
[1749078490772,5.24107359,2612.9,2612.8,2.00089708]
[1749078492079,4.47605359,2612.9,2612.8,2.00089708]
[1749078492474,0.01565359,2612.9,2612.8,7.49369604]
[1749078492674,3.59e-06,2612.9,2612.8,14.39536236]
[1749078492883,0.1553,2613.2,2613.1,0.76494]
[1749078493179,0.1553,2613.2,2613.1,5.20860708]
[1749078493373,1e-08,2613.2,2613.1,6.54270708]
[1749078493979,3.80573976,2613.4,2613.3,0.76488]
[1749078494275,3.80573976,2613.4,2613.3,8.14074708]
[1749078494779,3.80573976,2613.4,2613.3,9.35754708]
[1749078495075,3.80573976,2613.4,2613.3,2.00074708]
[1749078496378,3.80573976,2613.4,2613.3,4.2808795]
[1749078496676,0.00573976,2613.4,2613.3,4.2808795]
[1749078496979,0.00573976,2613.4,2613.3,5.4976795]
[1749078497179,3.80573976,2613.4,2613.3,5.49680911]
[1749078497676,0.00573976,2613.4,2613.3,5.49014495]
[1749078498278,0.00573976,2613.4,2613.3,3.21088292]
[1749078498781,0.00573976,2613.4,2613.3,5.48807458]
[1749078499376,0.00573976,2613.4,2613.3,10.41027458]
[1749078499781,0.07305452,2613.4,2613.3,10.41027458]
[1749078500180,0.07305452,2613.4,2613.3,11.68697458]
[1749078500380,0.07305452,2613.4,2613.3,9.40978292]
[1749078501384,0.07305452,2613.4,2613.3,10.92689633]
[1749078501581,9.01434855,2616.2,2614.4,38.22782]
[1749078501779,9.724,2618.5,2614.4,38.22782]
[1749078501780,0.29773658,2616.7,2616.1,3.2078]
[1749078501985,0.29773658,2616.7,2616.5,3.2078]
[1749078502180,3.2078,2617.4,2616.6,1.33491605]
[1749078502483,0.76386,2616.8,2616.7,1.34135472]
[1749078502785,11.62343976,2617.3,2616.7,0.00573976]
[1749078502974,7.95576,2617.2,2616.7,0.00573976]
[1749078503179,19.1,2616.8,2616.7,0.76962976]
[1749078503480,19.1,2616.8,2616.7,5.32057677]
[1749078504881,19.1,2616.8,2616.7,3.21353976]
[1749078505085,19.1,2616.8,2616.7,3.97742976]
[1749078505282,19.1,2616.8,2616.7,3.21353976]
[1749078505682,19.1,2616.8,2616.7,3.97742976]
[1749078506788,19.1,2616.8,2616.7,3.21353976]
[1749078507284,24.1,2616.8,2616.7,0.00573976]
[1749078507482,24.86386,2616.8,2616.7,0.00573976]
[1749078507683,25.3992,2616.8,2616.7,0.00573976]
[1749078507980,26.16306,2616.8,2616.7,0.00573976]
[1749078508581,0.76389,2616.7,2616.6,3.2078]
[1749078508879,1.2992,2616.7,2616.6,3.2078]
[1749078509280,7.06309,2616.7,2616.6,3.2078]
[1749078510888,26.16309,2616.7,2616.6,3.2078]
[1749078511287,33.34909,2616.7,2616.6,3.2078]
[1749078511977,0.76395,2616.5,2616.4,0.00573976]
[1749078512189,0.76394,2616.6,2616.4,0.00573976]
[1749078512388,1.25,2616.5,2616.4,0.00573976]
[1749078512589,20.35,2616.5,2616.4,0.00573976]
[1749078512777,21.11395,2616.5,2616.4,0.00573976]
[1749078513481,21.11395,2616.5,2616.4,0.76971976]
[1749078513986,20.35,2616.5,2616.4,0.76971976]
[1749078514190,21.11395,2616.5,2616.4,0.76971976]
[1749078514489,20.35,2616.5,2616.4,0.76971976]
[1749078514889,20.41731476,2616.5,2616.4,0.76971976]
[1749078516185,0.76407,2616.1,2616.0,3.2078]
[1749078516590,0.76405,2616.2,2616.0,3.2078]
[1749078516891,1.2745,2616.1,2616.0,3.9719]
[1749078517487,1.2745,2616.1,2616.0,4.3558]
[1749078517686,2.03857,2616.1,2616.0,3.2078]
[1749078518789,21.13857,2616.1,2616.0,3.2078]
[1749078521583,21.13857,2616.1,2615.8,0.00573976]
[1749078521584,0.76412,2615.9,2615.8,0.00573976]
[1749078522090,0.76412,2616.0,2615.8,1.33975277]
[1749078522390,21.09522,2615.9,2615.8,0.38963976]
[1749078522596,21.09522,2615.9,2615.8,1.72367565]
[1749078522795,20.3311,2615.9,2615.8,2.48782565]
[1749078523089,21.09522,2615.9,2615.8,1.15378976]
[1749078523489,21.09522,2615.9,2615.8,2.4891094]
[1749078523691,21.09522,2615.9,2615.8,1.7249594]
[1749078523899,21.09522,2615.9,2615.8,1.3410594]
[1749078525097,21.09522,2615.9,2615.8,0.00573976]
[1749078525893,21.09522,2615.9,2615.8,1.34415068]
[1749078526400,21.09522,2615.9,2615.5,0.3839]
[1749078526401,0.76424,2615.5,2615.4,3.2078]
[1749078526699,0.76424,2615.5,2615.4,4.54644672]
[1749078526885,0.76424,2615.5,2615.4,4.93034672]
[1749078527087,0.76424,2615.5,2615.4,4.54644672]
[1749078528296,0.76424,2615.5,2615.4,4.54907389]
[1749078530084,1.38774,2615.5,2615.4,1.34127389]
[1749078530490,20.48774,2615.5,2615.4,1.34127389]
[1749078530790,0.76436,2615.1,2615.0,1.12927451]
[1749078531391,0.76442,2614.9,2614.8,3.2078]
[1749078531594,3.2078,2614.9,2614.7,1.51097636]
[1749078531786,1.2846,2614.8,2614.5,1.51097636]
[1749078531991,0.7645,2614.6,2614.5,1.51097636]
[1749078532290,1.2846,2614.8,2614.4,1.51097636]
[1749078532291,0.76453,2614.5,2614.4,1.51097636]
[1749078532492,0.76456,2614.4,2614.3,4.71877636]
[1749078532692,19.86456,2614.4,2614.3,4.71877636]
[1749078532988,19.86456,2614.4,2614.3,3.2078]
[1749078533699,19.86456,2614.4,2614.3,4.34164389]
[1749078533894,19.86456,2614.4,2614.3,3.2078]
[1749078534198,19.86456,2614.4,2614.3,4.34186337]
[1749078534695,19.1,2614.4,2614.3,5.10645337]
[1749078535000,19.1,2614.4,2614.3,5.10603276]
[1749078535197,19.1,2614.4,2614.3,3.97239]
[1749078535801,19.86456,2614.4,2614.3,4.34118121]
[1749078536796,19.86456,2614.4,2614.3,4.34109548]
[1749078537001,19.86456,2614.4,2614.3,3.2078]
[1749078538500,19.1,2614.4,2614.3,4.5211]
[1749078538697,19.86456,2614.4,2614.3,4.5211]
[1749078539401,19.86456,2614.4,2614.3,3.2078]
[1749078541717,0.76465,2614.1,2614.0,3.2078]
[1749078542622,0.76465,2614.1,2614.0,4.47509943]
[1749078545424,0.83196476,2614.1,2614.0,4.47509943]
[1749078545721,0.83196476,2614.1,2614.0,4.47488851]
[1749078546828,0.83196476,2614.1,2614.0,1.26708851]
[1749078548727,0.76474,2613.8,2613.7,3.2078]
[1749078549428,19.86474,2613.8,2613.7,3.2078]
[1749078557528,0.76483,2613.5,2613.4,1.13396342]
[1749078557734,0.76486,2613.4,2613.3,3.2078]
[1749078558138,0.76486,2613.4,2613.3,4.34491162]
[1749078558840,0.76486,2613.4,2613.3,3.2078]
[1749078560336,0.76491,2613.2,2613.1,2.15754883]
[1749078560741,0.76491,2613.2,2613.1,1.90411018]
[1749078561138,0.76491,2613.2,2613.1,1.26271018]
[1749078561339,0.76491,2613.2,2613.1,2.78116923]
[1749078565232,0.76491,2613.2,2613.1,1.26271018]
[1749078568837,0.76491,2613.2,2613.1,2.78116923]
[1749078569146,0.76491,2613.2,2613.1,2.78299468]
[1749078570054,0.76491,2613.2,2613.1,1.51845905]
[1749078570346,0.76491,2613.2,2613.1,1.26503474]
[1749078570846,0.76491,2613.2,2613.1,2.78349379]
[1749078573653,0.76491,2613.2,2613.1,2.78445497]
[1749078575951,0.83222476,2613.2,2613.1,2.78445497]
[1749078576446,0.83222476,2613.2,2613.1,1.26599592]
[1749078576651,2.06282476,2613.2,2613.1,2.40769817]
[1749078576849,21.16282476,2613.2,2613.1,1.26599592]
[1749078577343,21.16282476,2613.2,2612.7,3.2078]
[1749078577344,0.76503,2612.8,2612.7,4.72625905]
[1749078577941,19.86503,2612.8,2612.7,4.72625905]
[1749078578347,0.76506,2612.7,2612.6,1.51845905]
[1749078578554,0.76506,2612.7,2612.6,1.52279265]
[1749078579049,19.86506,2612.7,2612.6,1.52279265]
[1749078580351,0.76509,2612.6,2612.5,1.52279265]
[1749078582840,0.76512,2612.5,2612.4,4.73059265]
[1749078583851,0.76512,2612.5,2612.4,1.52279265]
[1749078584051,0.76512,2612.5,2612.4,4.73059265]
[1749078587049,0.76509,2612.6,2612.4,5.49573265]
[1749078587244,0.76509,2612.6,2612.5,1.52279265]
[1749078587450,0.00573976,2612.9,2612.5,22.11822324]
[1749078587652,0.77073976,2612.9,2612.8,3.2078]
[1749078589160,0.76506,2612.7,2612.6,1.52159651]
[1749078589354,1.91825976,2612.9,2612.5,4.72939651]
[1749078589355,0.76509,2612.6,2612.5,4.72939651]
[1749078589555,0.76509,2612.6,2612.5,4.46006511]
[1749078589859,19.86509,2612.6,2612.5,4.46006511]
[1749078591562,19.86509,2612.6,2612.5,4.46002481]
[1749078597255,19.86509,2612.6,2612.5,1.25222481]
[1749078597457,21.16729,2612.6,2612.5,1.25222481]
[1749078599961,24.37509,2612.6,2612.5,1.25222481]
[1749078600366,24.37509,2612.6,2612.1,1.52159651]
[1749078600367,0.76521,2612.2,2612.1,1.52159651]
[1749078600570,0.76524,2612.1,2612.0,1.52159651]
[1749078600769,0.76529,2611.9,2611.8,4.72939651]
[1749078601067,0.76529,2611.9,2611.8,3.2078]
[1749078601460,2.03909,2611.9,2611.8,3.2078]
[1749078602271,0.76535,2611.7,2611.6,1.52159651]
[1749078602472,0.76538,2611.6,2611.5,4.72939651]
[1749078604572,0.76538,2611.6,2611.5,3.2078]
[1749078606173,0.83269476,2611.6,2611.5,3.2078]
[1749078607468,0.06731476,2611.6,2611.5,3.97321]
[1749078607672,3.2078,2612.3,2611.5,3.97321]
[1749078607673,1.2151,2612.3,2612.0,0.76527]
[1749078607978,0.76524,2612.1,2612.0,3.2078]
[1749078609673,0.76524,2612.1,2612.0,3.97307]
[1749078609971,1.2392,2612.6,2612.0,3.2078]
[1749078610167,1.2392,2612.6,2612.3,3.2078]
[1749078610364,0.76515,2612.4,2612.3,3.2078]
[1749078610775,0.76515,2612.4,2612.3,3.74381349]
[1749078610976,0.76515,2612.4,2612.3,3.2078]
[1749078611276,1.2392,2612.6,2612.3,3.97298]
[1749078611477,0.76515,2612.4,2612.3,3.97298]
[1749078611672,0.76515,2612.4,2612.3,4.50898182]
[1749078611870,0.76515,2612.4,2612.3,3.97298]
[1749078612270,0.76515,2612.4,2612.3,5.21680462]
[1749078612675,0.76515,2612.4,2612.3,4.45162462]
[1749078613071,0.76515,2612.4,2612.3,5.21680462]
[1749078613272,0.76515,2612.4,2612.3,4.45162462]
[1749078613472,0.76515,2612.4,2612.3,5.21680462]
[1749078613675,0.76515,2612.4,2612.3,4.45162462]
[1749078618874,0.76515,2612.4,2612.3,4.45136021]
[1749078619278,0.83246476,2612.4,2612.3,4.45136021]
[1749078619482,0.83246476,2612.4,2612.3,5.21654021]
[1749078619679,0.06731476,2612.4,2612.3,5.21654021]
[1749078620981,0.83246476,2612.4,2612.3,5.21654021]
[1749078621383,0.83246476,2612.4,2612.3,4.45136021]
[1749078623378,0.83246476,2612.4,2612.3,5.21654021]
[1749078623882,0.83246476,2612.4,2612.3,1.24356021]
[1749078631987,1.46076476,2612.4,2612.3,1.24356021]
[1749078634896,0.76521,2612.2,2612.1,5.49349344]
[1749078635097,0.76521,2612.2,2612.1,6.70959162]
[1749078635604,0.76521,2612.2,2612.1,5.1883221]
[1749078637095,0.69561476,2612.4,2612.1,5.1883221]
[1749078637096,0.06731476,2612.4,2612.3,0.76518]
[1749078637290,0.83246476,2612.4,2612.3,1.9804721]
[1749078638003,0.06731476,2612.4,2612.3,1.9804721]
[1749078638402,0.06731476,2612.4,2612.3,4.26286687]
[1749078638990,0.83246476,2612.4,2612.3,4.26286687]
[1749078639499,0.83246476,2612.4,2612.3,4.25126158]
[1749078639902,0.06731476,2612.4,2612.3,4.25126158]
[1749078640105,0.06731476,2612.4,2612.3,3.22016681]
[1749078640403,0.06731476,2612.4,2612.3,8.79516681]
[1749078640598,0.06731476,2612.4,2612.3,9.43286681]
[1749078641003,0.76504,2612.8,2612.7,0.76506]
[1749078641302,0.76504,2612.8,2612.7,5.17654681]
[1749078642106,0.76504,2612.8,2612.7,6.70030539]
[1749078642310,0.76504,2612.8,2612.7,5.17654681]
[1749078642499,0.76504,2612.8,2612.7,6.69996326]
[1749078643206,0.76504,2612.8,2612.7,5.93490326]
[1749078643906,2.07424,2612.8,2612.7,4.41148681]
[1749078644400,2.07424,2612.8,2612.7,1.20368681]
[1749078644597,7.07424,2612.8,2612.7,2.34647906]
[1749078644998,7.07424,2612.8,2612.7,1.20368681]
[1749078645400,7.07424,2612.8,2612.7,0.20138681]
[1749078645906,0.76512,2612.5,2612.4,4.35109399]
[1749078646800,2.00822,2612.5,2612.4,4.35109399]
[1749078649405,2.00822,2612.5,2612.4,3.2078]
[1749078649709,2.07553476,2612.5,2612.4,3.2078]
[1749078657508,2.07553476,2612.5,2612.4,4.40256039]
[1749078659615,2.07553476,2612.5,2612.4,5.5460842]
[1749078660311,5.28333476,2612.5,2612.4,2.3382842]
[1749078660512,0.76527,2612.0,2611.9,5.11511645]
[1749078660811,0.76527,2612.0,2611.9,4.73121645]
[1749078661007,0.76532,2611.8,2611.7,4.73121645]
[1749078661407,0.76532,2611.8,2611.7,3.2078]
[1749078661909,0.76532,2611.8,2611.7,4.73121645]
[1749078662106,0.76532,2611.8,2611.7,3.2078]
[1749078662411,2.54963,2612.1,2611.8,0.76532]
[1749078662412,0.76529,2612.0,2611.8,0.76532]
[1749078662616,0.6365,2612.1,2611.7,5.49754468]
[1749078663016,0.76532,2611.9,2611.7,5.49754468]
[1749078663517,1.91293,2612.4,2611.7,4.73221468]
[1749078663715,1.91298,2612.3,2612.0,3.2078]
[1749078663910,3.24228,2612.3,2612.0,3.2078]
[1749078664506,0.76524,2612.1,2612.0,3.2078]
[1749078664906,0.76521,2612.2,2612.0,4.73221468]
[1749078665112,0.76521,2612.2,2612.1,0.6174]
[1749078666513,0.76521,2612.2,2612.1,1.38264]
[1749078666918,0.76521,2612.2,2612.1,0.6174]
[1749078669426,0.76521,2612.2,2612.1,2.14181468]
[1749078669623,0.76521,2612.2,2612.1,1.52441468]
[1749078669924,0.76524,2612.1,2612.0,4.73221468]
[1749078670119,0.76524,2612.1,2612.0,3.2078]
[1749078670418,0.76524,2612.1,2612.0,3.97307]
[1749078672427,0.76524,2612.1,2612.0,5.1536646]
[1749078672823,6.6338,2612.7,2612.0,5.1536646]
[1749078672824,0.7652,2612.3,2612.2,0.76517]
[1749078673029,0.76517,2612.4,2612.3,0.76515]
[1749078673331,0.76517,2612.4,2612.3,5.15349335]
[1749078673630,0.76517,2612.4,2612.3,6.67754333]
[1749078673830,0.76517,2612.4,2612.3,1.18054335]
[1749078674223,0.76521,2612.2,2612.1,2.28928998]
[1749078674423,0.76521,2612.2,2612.1,0.76524]
[1749078674719,0.7652,2612.3,2612.2,0.76519]
[1749078675027,0.7652,2612.3,2612.2,5.4970793]
[1749078675427,0.7652,2612.3,2612.2,4.7318893]
[1749078677529,0.7652,2612.3,2612.2,3.2078]
[1749078678132,0.7652,2612.3,2612.2,4.7318893]
[1749078678329,0.7652,2612.3,2612.2,3.2078]
[1749078678726,0.7652,2612.3,2612.2,4.7318893]
[1749078679134,0.7652,2612.3,2612.2,5.4970993]
[1749078679634,0.7652,2612.3,2612.2,4.7318893]
[1749078680130,0.83251476,2612.3,2612.2,4.7318893]
[1749078680535,0.83251476,2612.3,2612.2,1.5240893]
[1749078680735,0.83251476,2612.3,2612.2,4.7318893]
[1749078681338,0.06731476,2612.3,2612.2,5.4970993]
[1749078681534,0.06731476,2612.3,2612.2,6.25919925]
[1749078681836,0.06731476,2612.3,2612.2,8.97301]
[1749078682140,0.00573976,2612.9,2612.8,0.76503]